Cogmind - Beta 9.4 @@@ ROGUE MODE // 2020.02.22 @ 08:45:31 Player: OccultOnion Result: Destroyed by G-34 Mercenary with Small Laser Performance ------------- Evolutions (0) 0 Regions Visited (1) 200 Robots Destroyed (6) 30 Value Destroyed (61) 61 Prototype IDs (0) 0 Alien Tech Used (0) 0 Bonus (0) 0 TOTAL SCORE: 291 Bonus ------- None Cogmind --------- Core Integrity 0/250 Matter 300/300 Energy 100/100 System Corruption 0% Temperature Cool (15) Movement Core (50) Location -10/Materials Parts ------- > --- POWER (1) -------- (None) > --- PROPULSION (2) --- (None) > --- UTILITY (2) ------ (None) > --- WEAPON (2) ------- (None) > --- INVENTORY (4) ---- Compact Wheel Heat Sink Small Storage Unit Light Assault Rifle Peak State ------------ > --- POWER ------------ Light Ion Engine > --- PROPULSION ------- Aluminum Leg Aluminum Leg > --- UTILITY ---------- Small Storage Unit Improved Terrain Scanner > --- WEAPON ----------- Small Laser Light Assault Rifle > --- INVENTORY -------- Light Ion Engine Compact Wheel Light Assault Rifle [Rating: 8] Favorites ----------- Power Light Ion Engine Engine Light Ion Engine Propulsion Aluminum Leg Leg Aluminum Leg Utility Small Storage Unit Device Improved Terrain Scanner Storage Small Storage Unit Weapon Light Assault Rifle Energy Gun Small Laser Ballistic Gun Light Assault Rifle Build | -11 -10 ------- Run | Scr Mat Slots Evolved . | . . Power . | . . Propulsion . | . . Utility . | . . Weapon . | . . Parts Attached 11 | 7 4 Power 2 | 1 1 Engine 2 | 1 1 Core . | . . Reactor . | . . Propulsion 3 | 2 1 Treads . | . . Leg 3 | 2 1 Wheel . | . . Hover . | . . Flight . | . . Utility 2 | 2 . Device 1 | 1 . Storage 1 | 1 . Processor . | . . Hackware . | . . Protection . | . . Artifact . | . . Weapon 4 | 2 2 Energy Gun 3 | 1 2 Energy Cannon . | . . Ballistic Gun 1 | 1 . Ballistic Cannon . | . . Launcher . | . . Special Weapon . | . . Impact Weapon . | . . Slashing Weapon . | . . Piercing Weapon . | . . Special Melee Weapon . | . . Unidentified Prototypes . | . . Parts Lost 11 | . 11 Power 2 | . 2 Propulsion 3 | . 3 Utility 2 | . 2 Weapon 4 | . 4 Highest Loss Streak 11 | . 11 Average Slot Usage (%) 80 | . 80 Engine 11 | . 11 Leg 24 | . 24 Device 10 | . 10 Storage 14 | . 14 Energy Gun 8 | . 8 Ballistic Gun 10 | . 10 Naked Turns 4 | . 4 Heaviest Build 10 | 10 10 Greatest Support 20 | 20 20 Greatest Overweight (x) 2 | 2 1 Average Overweight (x) . | . . Largest Inventory Capacity 6 | 6 6 Average Capacity 5 | 5 5 Most Carried 6 | 4 6 Average Carried 3 | 2 3 Final Capacity 6 | 6 4 Final Carried 4 | 3 4 Class Distribution -------------------- 100% | Mutant Dominant Class ---------------- Mutant | -10/Materials Resources | -11 -10 ----------- Run | Scr Mat Matter Collected 319 | 279 40 Remotely . | . . Salvage Created 222 | 110 112 Parts 14 | 4 10 Haulers Intercepted . | . . Recyclers Shooed . | . . Parts Field Recycled . | . . Retrieved Matter . | . . Parts Self-Destructed . | . . Prevented . | . . Kills | -11 -10 ------- Run | Scr Mat Combat Hostiles Destroyed 1 | . 1 Guns 1 | . 1 Classes Destroyed 4 | 2 2 Worker 1 | . 1 Tunneler 2 | 2 . Recycler 2 | 1 1 Grunt 1 | . 1 Best Kill Streak 2 | 2 2 Combat Bots Only 1 | . 1 Max Kills in Single Turn 1 | 1 1 Gunslinging . | . . Exploded . | . . Melee . | . . Uniques/NPCs Destroyed . | . . Combat | -11 -10 -------- Run | Scr Mat Damage Taken 990 | . 990 Core 260 | . 260 Absorbed by Shields . | . . Core Remaining (%) 100 | 100 . Volleys Fired 40 | 9 31 Largest 2 | 2 2 Hottest 60 | 60 60 Shots Fired 61 | 18 43 Gun 61 | 18 43 Cannon . | . . Launcher . | . . Special . | . . Kinetic 36 | 9 27 Thermal 25 | 9 16 Explosive . | . . Electromagnetic . | . . Robot Hit Streak 10 | 8 10 Robot Miss Streak 2 | 2 1 Penetration Max . | . . Secondary Targets . | . . Shots Hit Robots 27 | 11 16 Core Hits 19 | 4 15 Critical Hits . | . . Critical Kills . | . . Critical Parts Destroyed . | . . Melee Attacks . | . . Impact . | . . Slashing . | . . Piercing . | . . Sneak Attacks . | . . Combat Hostiles . | . . Follow-up Attacks . | . . Damage Inflicted 329 | 109 220 Guns 290 | 109 181 Cannons . | . . Explosions . | . . Melee . | . . Ramming 39 | . 39 Kinetic 135 | 22 113 Thermal 155 | 87 68 Explosive . | . . Electromagnetic . | . . Impact . | . . Slashing . | . . Piercing . | . . Highest Corruption . | . . Average Corruption . | . . Corruption Purged . | . . Overload Shots . | . . Overflow Damage . | . . Projectiles . | . . Explosions . | . . Melee . | . . Knockbacks . | . . Impact . | . . Kinetic . | . . Secondary . | . . Self-Inflicted Damage 11 | . 11 Shots . | . . Rammed 21 | . 21 Targets Rammed 26 | . 26 Kicked 5 | . 5 Crushed . | . . Highest Temperature 100 | 20 100 Average Temperature 30 | 14 35 Received Heat Transfer 540 | . 540 Siege Activations . | . . Robots Corrupted . | . . Combat Hostiles . | . . Parts Fried . | . . Impact Corruptions . | . . Robots Melted . | . . Combat Hostiles . | . . Parts Melted . | . . Heat Transferred 350 | 200 150 Parts Sabotaged . | . . Parts Stolen . | . . Parts Stripped . | . . Power Chain Reactions . | . . Missiles Intercepted . | . . Alert | -11 -10 ------- Run | Scr Mat Peak Influence 29 | 15 29 Average Influence 8 | 6 9 Maximum Alert Level . | . . Low Security (%) 100 | 100 100 Level 1 . | . . Level 2 . | . . Level 3 . | . . Level 4 . | . . Level 5 . | . . High Security . | . . Max Security . | . . Squads Dispatched 1 | . 1 Investigation 1 | . 1 Extermination . | . . Reinforcement . | . . Assault . | . . Garrison . | . . Intercept . | . . Construction Impeded . | . . Haulers Reinforced . | . . Stealth | -11 -10 --------- Run | Scr Mat Distress Signals 1 | . 1 Communications Jammed . | . . Distress Signals . | . . Times Spotted 6 | . 6 Peak Tracking Total 5 | . 5 Tactical Retreats . | . . Traps | -11 -10 ------- Run | Scr Mat Traps Triggered . | . . Indirectly . | . . Trap Hack Attempts . | . . Triggered . | . . Disarmed . | . . Reprogrammed . | . . Reused . | . . Traps Extracted . | . . Installed . | . . Triggered . | . . Machines | -11 -10 ---------- Run | Scr Mat Machines Disabled . | . . Max in Single Turn . | . . Machines Sabotaged . | . . Garrisons Compromised . | . . Overloaded Fab Kills . | . . Fab Network Shutdowns . | . . Hacking | -11 -10 --------- Run | Scr Mat Machines Accessed 1 | . 1 Terminals 1 | . 1 Fabricators . | . . Repair Stations . | . . Recycling Units . | . . Scanalyzers . | . . Garrison Access . | . . Total Hacks 3 | . 3 Successful . | . . Failed 3 | . 3 Catastrophic 1 | . 1 Database Lockouts . | . . Manual . | . . Terminals 3 | . 3 Fabricators . | . . Repair Stations . | . . Recycling Units . | . . Scanalyzers . | . . Garrison Access . | . . Terminal Hacks . | . . Fabricator Hacks . | . . Repair Station Hacks . | . . Recycling Unit Hacks . | . . Scanalyzer . | . . Garrison Access Hacks . | . . Unauthorized Hacks . | . . Terminals . | . . Fabricators . | . . Repair Stations . | . . Recycling Units . | . . Scanalyzers . | . . Garrison Access . | . . Data Cores Recovered . | . . Used . | . . Hacking Detections 1 | . 1 Full Trace Events 1 | . 1 Feedback Events . | . . Feedback Blocked . | . . Robot Schematics Acquired . | . . Robots Built . | . . Matter . | . . Time . | . . Total Robot Build Rating . | . . Part Schematics Acquired . | . . Parts Built . | . . Matter . | . . Time . | . . Total Part Build Rating . | . . Parts Repaired . | . . Time . | . . Parts Recycled . | . . Recycled Matter . | . . Retrieved Matter . | . . Retrieved Components . | . . Parts Scanalyzed . | . . Part Schematics Acquired . | . . Parts Damaged . | . . Bothacking | -11 -10 ------------ Run | Scr Mat Used RIF Installer . | . . Robots Hacked . | . . Non-combat . | . . Combat . | . . Robot Hacks Applied . | . . Relay Couplers Released . | . . Robots Rewired . | . . Allies Hacked . | . . Hacks Repelled . | . . Allies | -11 -10 -------- Run | Scr Mat Total Allies . | . . Largest Group . | . . Highest-Rated Group . | . . Highest-Rated Ally . | . . Total Orders . | . . Ally Attacks . | . . Total Damage . | . . Kills . | . . Allies Corrupted . | . . Allies Melted . | . . Intel | -11 -10 ------- Run | Scr Mat Robot Analysis Total . | . . Derelict Logs Recovered . | . . Drone Launches . | . . Drone Recoveries . | . . Exploration | -11 -10 ------------- Run | Scr Mat Turns Passed 326 | 120 206 Spaces Moved 152 | 69 83 Core 26 | 22 4 Treads . | . . Legs 126 | 47 79 Wheels . | . . Hover . | . . Flight . | . . Fastest Speed 50 | 50 100 Average Speed 116 | 113 119 Slowest Speed 150 | 150 120 Overloaded Moves . | . . Propulsion Burnouts . | . . Robots Hopped . | . . Cave-ins Triggered . | . . Exploration Rate (%) 10 | 4 16 Regions Visited 1 Branch Regions . Pre-discovered Areas . | . . Known Exits Taken . | . . Unknown Exits Taken 1 | 1 . Scrap Searched . | . . Spaces Dug . | . . Terrain Destroyed . | . . Melee . | . . Projectile . | . . AOE . | . . Actions | -11 -10 --------- Run | Scr Mat Total 243 | 94 149 Wait . | . . Move 151 | 68 83 Hop . | . . Pick Up 15 | 10 5 Fast Attach . | . . Attach 11 | 7 4 Detach . | . . Swap . | . . Drop . | . . Fire 40 | 9 31 Melee . | . . Ram 5 | . 5 Kick 21 | . 21 Crush . | . . Escape Stasis . | . . Rewire . | . . Trap . | . . Miscellaneous . | . . Route ------- -11/Scrapyard -10/Materials (discovered 1 exit: [*Min]) History --------- Turn | Location | Event 6 | -11/Scrapyard | Discovered new exit (range 16) 121 | -11/Scrapyard | Entered Materials 147 | -10/Materials | Discovered new exit (range 13) 308 | -10/Materials | Core integrity fell below 50% 311 | -10/Materials | Build established: Mutant 322 | -10/Materials | Core integrity fell below 20% 327 | -10/Materials | Destroyed by G-34 Mercenary with Small Laser Last Messages --------------- 00281_ Acquired Sml. Laser. 00286_ Acquired Heat Sink. 00287_ Terminal unresponsive. 00288_ Acquired Aluminum Leg. 00293_ Sml. Laser destroyed. 00295_ Slammed into G-47 Trooper. 00296_ Acquired 3 matter. 00296_ Slammed into G-47 Trooper. 00297_ Kicked G-47 Trooper out of the way. 00298_ Slammed into G-47 Trooper. 00299_ Kicked G-47 Trooper out of the way. 00303_ Slammed into G-47 Trooper. 00314_ Lgt. Ion Engine destroyed. 00315_ Slammed into G-47 Trooper. 00319_ Kicked G-47 Trooper out of the way. 00320_ Slammed into G-47 Trooper. 00320_ Aluminum Leg destroyed. 00323_ Sml. Storage Unit destroyed. 00323_ Slammed into G-47 Trooper. 00325_ Slammed into G-34 Mercenary. Map ----- +----------------------------------------------------+ | ?????????????????????????????????????????????????? | | ?????????????????????????????????????????????????? | | ?????????????????????????????????????????????????? | | ?????????????????????????????????????????????????? | | ?????????????????????????????????????????????????? | | ?????????????????????????????????????????????????? | | ?????????????????????????????????????????????????? | | ?????????????????????????????????????????????????? | | ?????????????????????????????????????????????????? | | ?????????????????????????????????????????????????? | | ?????????????????????????????????????????????????? | | ????????????????????????????????????? ???????????? | | ?????????????????????#???????????????????????????? | | ?????????????????????????????????????????????????? | | ?????????????????????????????????????????????????? | | ????????????? ?????????????????????????????????"?? | | ?????????????????????????????????????????????????? | | ????????????????????? ????????????????????????#??? | | ???????????????????? ????????????? ?????????? #??? | | ??????????????????????????#????#??????#????? #??? | | ????????????????????#???##############????? #??? | | ????????????????????????# = # ####### #??? | | ????????????????????#???# # #??? | | ?????????? #####%""" + < #??? | | ??????????" u/g""" # #??? | | ??????????" #####@""" # ###+########?? | | ????????????????????????#%%%% ## ## ???????? | | ?????????????????????##?#%""" ## ## #?????? | | ??????????????? ????##??#%"""%## ## """ #?????? | | ???????????????? ???????#g"""=## ##! """ #??#??? | | ???????????????? ??????##%%gg%## ## """ #?????? | | ????????????????? ??#???#%%%==## ## #?????? | | ????????????????????????#%"T"%## #########?????# | | ?????????????? #########+## ##???#???#????? | | ?????????????? *%! #########????? | | ?????????????? = + ##???? | | ?????????????? ## #????? | | ???????????????# ########### ## #????? | | ???????????????# ???? ? ?? ??## ## #????? | | ????????????????????????????????# ## #????? | | ??????????????????????+ ???????## ## #????? | | ????????????????????? ??????"??# ###+######### | | ?????????????????? ????????????# | | ??????????????????????#????????# | | ????????????????????+??????????# | | ???????????????????????????#???# ############# | | ?????????????????????????#?????#######???????????? | | ?????????????????????? ???????????????????#??????? | | ?????????????????????????????????????#???????????? | | ???????????????????????????#???????#?????????????? | +----------------------------------------------------+ Best States ------------- Heat Dissipation 25 Energy Generation 10 Energy Capacity 125 Matter Stores 300 Matter Capacity 300 Sight Range 16 Terrain Scan Range 16 Terrain Scan Density 10 Evasion (%) 50 Item Schematics ----------------- None Robot Schematics ------------------ None Fabricated ------------ Nothing Alien Tech Used ----------------- None Achievements -------------- None Challenges ------------ None Game ------ Seed ImpulseLayeredMachine Manual? 0 Play Time 00:05:38 Cumulative 34.2 hours Start 2020.02.22 @ 08:41:51 End 2020.02.22 @ 08:45:31 Sessions 1 Manual Loads 0 Difficulty Rogue Special Mode None Game No. 86 Rogue 86 Adventurer 0 Explorer 0 Win Type - Total 0 Types 0/0/0/0/0/0/0 Lore% 20 Gallery% 39 Achievement% 24 Wizard Run 0 Options --------- ASCII 0 Keyboard 0 Movement Numpad Keybinds 0 Fullscreen 1 Font 18/SmallcapsGlow Map View 76x50 Tactical HUD 1 Map Filters NONE Filters NONE Steam 1 RUN: 57804ed7-7470-42f8-a069-5848acdb86cf